Workbook

Sheet Budget by yr2018-2022 PARIS
F1: Onondaga Tobacco Asset Securitization Corporation | K1: As Per
A2: BUDGET-OTASC | C2: 2018-2022 | K2: Debt Service
D3: Actual | E3: Budget | F3: Actual | G3: Budget | H3: Actual | I3: Budget | J3: Actual | K3: Budget | L3: Budget | M3: Budget | N3: Budget | O3: Budget | P3: Budget
D4: 2012 | E4: 2013 | F4: 2013 | G4: 2014 | H4: 2014 | I4: 2015 | J4: 2015 | K4: 2017 | L4: 2018 | M4: 2019 | N4: 2020 | O4: 2021 | P4: 2022
A5: OPERATING REVENUES:
B6: Tobacco settlement proceeds | D6: 6,821,381 | E6: 6,555,000 | F6: 6,817,145 | G6: 7,700,000 | H6: 7,712,439 | I6: 6,750,000 | J6: 6,600,031 | K6: 6,506,000 | L6: 6,320,988 | M6: 6,350,000 | N6: 6,500,000 | O6: 6,500,000 | P6: 6,500,000
B7: Interest income | D7: 482,808 | E7: 460,000 | F7: 465,825 | G7: =+E7 -> 460,000 | H7: 463,458 | I7: =G7 -> 460,000 | J7: 451,578 | K7: 36,000 | L7: 70,000 | M7: =L7 -> 70,000 | N7: 73,000 | O7: =N7 -> 73,000 | P7: 73,000
C8: Total operating revenues | D8: =SUM(D6:D7) -> 7,304,189 | E8: =SUM(E6:E7) -> 7,015,000 | F8: =SUM(F6:F7) -> 7,282,970 | G8: 8,160,000 | H8: 8,175,897 | I8: 7,210,000 | J8: =SUM(J6:J7) -> 7,051,609 | K8: 6,542,000 | L8: =SUM(L6:L7) -> 6,390,988 | M8: =SUM(M6:M7) -> 6,420,000 | N8: =SUM(N6:N7) -> 6,573,000 | O8: =SUM(O6:O7) -> 6,573,000 | P8: =SUM(P6:P7) -> 6,573,000
A10: OPERATING EXPENSES:
B11: Insurance expense | D11: 4,294 | E11: 5,500 | F11: 4,243 | G11: 5,000 | H11: 4,029 | I11: 5,000 | J11: 4,035 | K11: 5,000 | L11: 5,100 | M11: 5,100 | N11: 5,200 | O11: 5,200 | P11: 5,300
B12: Audit fee | D12: 8,000 | E12: 6,000 | F12: 5,500 | G12: 6,500 | H12: 6,500 | I12: 7,000 | J12: 6,500 | K12: 12,000 | L12: 6,600 | M12: 6,600 | N12: 6,700 | O12: 6,700 | P12: 6,700
B13: Legal fees | D13: 3,500 | E13: 4,500 | F13: 3,500 | G13: 4,000 | H13: 3,500 | I13: 4,000 | J13: 4,000 | K13: 4,000 | L13: 4,000 | M13: 4,000 | N13: 4,100 | O13: 4,100 | P13: 4,100
B14: Trustee fee | D14: 7,557 | E14: 8,000 | F14: 7,557 | G14: 8,000 | H14: 4,807 | I14: 8,000 | J14: 10,307 | K14: 8,000 | L14: 6,000 | M14: 6,000 | N14: 6,500 | O14: 6,500 | P14: 6,500
B15: Administrative agency fee | D15: 29,938 | E15: 30,000 | F15: 29,938 | G15: 30,000 | H15: 29,938 | I15: 30,000 | J15: 29,938 | K15: 35,500 | L15: 30,000 | M15: 30,000 | N15: 30,500 | O15: 30,500 | P15: 30,500
B16: Rating agency fee | D16: 6,238 | E16: 13,250 | F16: 10,175 | G16: 12,000 | H16: 10,175 | I16: 12,000 | J16: 11,326 | K16: 7,000 | L16: 7,000 | M16: 7,000 | N16: 7,100 | O16: 7,100 | P16: 7,100
B17: General and administrative costs | D17: 41,984 | E17: 48,750 | F17: 48,549 | G17: 55,000 | H17: 56,547 | I17: =+G17+2000 -> 57,000 | J17: 57,000 | K17: 61,000 | L17: 63,000 | M17: 65,000 | N17: 67,000 | O17: 69,000 | P17: 71,000
B18: OTASC - Bond Payment | D18: 5,212,594 | E18: 5,131,825 | F18: 5,102,294 | G18: 5,016,700 | H18: 4,961,838 | I18: 4,954,806 | J18: 4,820,406 | K18: 420,000 | L18: 1,080,000 | M18: 960,000 | N18: 1,245,000 | O18: 1,320,000 | P18: 1,400,000
B19: Interest - Cash (Slow Pay) | D19: =SUM(D11:D18) -> 5,314,105 | E19: =SUM(E11:E18) -> 5,247,825 | F19: =SUM(F11:F18) -> 5,211,756 | G19: =SUM(G11:G18) -> 5,137,200 | H19: 8,278,381 | I19: =SUM(I11:I18) -> 5,077,806 | J19: =SUM(J11:J18) -> 4,943,512 | K19: 5,536,171 | L19: 5,110,318 | M19: 5,053,013 | N19: 4,990,997 | O19: 4,918,856 | P19: 4,842,356
C22: Total operating expenses | D22: =D8-D19 -> 1,990,084 | E22: =E8-E19 -> 1,767,175 | F22: =F8-F19 -> 2,071,214 | G22: =G8-G19 -> 3,022,800 | H22: (102,484) | I22: =I8-I19 -> 2,132,194 | J22: =+J8-J19 -> 2,108,097 | K22: =SUM(K11:K20) -> 6,088,671 | L22: =SUM(L11:L20) -> 6,312,018 | M22: =SUM(M11:M20) -> 6,136,713 | N22: =SUM(N11:N20) -> 6,363,097 | O22: =SUM(O11:O20) -> 6,367,956 | P22: =SUM(P11:P19) -> 6,373,556
A24: INCREASE (DECREASE)IN NET DEFICIT | K24: =+K8-K22 -> 453,329 | L24: 78,970 | M24: 283,288 | N24: 209,903 | O24: 205,044 | P24: 199,444
A25: FUND BALANCE/NET DEFICIT -
A26: BEGINNING OF YEAR | D26: (123,881,006) | E26: =+D28 -> (124,021,571) | F26: =+D28 -> (124,021,571) | G26: =+F28 -> (121,950,357) | H26: =+F28 -> (121,950,357) | I26: =G28 -> (118,927,557) | J26: (127,909,510) | K26: 6,633,174 | L26: 6,554,074 | M26: =L28 -> 6,633,044 | N26: =+M28 -> 6,916,332 | O26: =+N28 -> 7,126,235 | P26: =+O28 -> 7,331,278
A27: *Adjmt for change in accounting GASB 65 | D27: (2,130,649)
A28: FUND BALANCE/NET DEFICIT - | D28: =D26+D22+D27 -> (124,021,571) | E28: =E26+E22 -> (122,254,396) | F28: =+F26+F22 -> (121,950,357) | G28: =G26+G22 -> (118,927,557) | H28: =+H22+H26 -> (122,052,841) | I28: =I26+I22 -> (116,795,363) | J28: =+J22+J26 -> (125,801,413) | K28: =+K24+K26 -> 7,086,503 | L28: 6,633,044 | M28: 6,916,332 | N28: 7,126,235 | O28: 7,331,278 | P28: 7,530,722
A29: END OF YEAR
F30: =+F18+#REF!+F35 -> 
A33: Bonds payable 2005 - Bal Beginning of year | D33: 93,100,000 | E33: 91,140,000 | F33: =+E33 -> 91,140,000 | G33: =+F33+F35 -> 89,070,000 | H33: =+G33+G35 -> 88,065,000 | I33: 85,975,000 | J33: 85,975,000 | K33: 10,478,166 | L33: =4963972+6244320 -> 11,208,292 | M33: =+L33+L37 -> 11,989,202 | N33: =+M33+M37 -> 12,824,521 | O33: =+N33+N37 -> 13,718,039 | P33: =+O33+O37 -> 14,673,812
A34: Bonds payable 2016 - Bal Beginning of year | D34: 28,525,438 | E34: 28,525,438 | F34: 28,525,438 | G34: 28,525,438 | H34: 28,525,438 | I34: 28,525,438 | J34: 28,525,438 | K34: 95,590,000 | L34: =+K34-325000 -> 95,265,000 | M34: =+L34+L35 -> 94,185,000 | N34: =+M34+M35 -> 93,225,000 | O34: =+N34+N35 -> 91,980,000 | P34: =+O34+O35 -> 90,660,000
A35: Assumed Bond Payment - Prin -Slow Pay- | D35: (1,960,000) | E35: (945,000) | F35: (2,070,000) | G35: =-'[1]Debt Service'!C4 -> (1,005,000) | H35: (3,095,000) | I35: =-'[1]Debt Service'!C5 -> (1,100,000) | J35: (2,040,000) | K35: 325,000 | L35: (1,080,000) | M35: =-M18 -> (960,000) | N35: =-N18 -> (1,245,000) | O35: =-O18 -> (1,320,000) | P35: =-P18 -> (1,400,000)
A36: Subtotal | D36: =SUM(D33:D35) -> 119,665,438 | E36: 118,720,438 | F36: 117,595,438 | G36: 116,590,438 | H36: =SUM(H33:H35) -> 113,495,438 | I36: 113,400,438 | J36: =SUM(J33:J35) -> 112,460,438 | K36: 106,393,166 | L36: 105,393,292 | M36: 105,214,202 | N36: =SUM(N33:N35) -> 104,804,521 | O36: =SUM(O33:O35) -> 104,378,039 | P36: =SUM(P33:P35) -> 103,933,812
A37: Add: - Accretion Bal at Year end | D37: 16,390,707 | E37: 19,367,566 | F37: 19,367,566 | G37: 22,536,506 | H37: 22,536,506 | I37: 25,919,799 | J37: 25,919,719 | K37: 730,046 | L37: 780,910 | M37: 835,319 | N37: 893,518 | O37: 955,772 | P37: 1,022,364
A38: Total bonds payable and accreted interest-Y/E | D38: =D37+D36 -> 136,056,145 | E38: 138,088,004 | F38: 136,963,004 | G38: 139,126,944 | H38: =SUM(H36:H37) -> 136,031,944 | I38: 139,320,237 | J38: =SUM(J36:J37) -> 138,380,157 | K38: 107,123,212 | L38: 106,174,202 | M38: 106,049,521 | N38: =SUM(N36:N37) -> 105,698,039 | O38: =SUM(O36:O37) -> 105,333,812 | P38: =+P36+P37 -> 104,956,176

Sheet Details for Budget
A2: 1) Base interest income on 2017- estimate- $70,000 | L2: Emails - Justin Gagnon- BLX on Future Payments/Expenses
L4: Hi Lori,
A5: 2) Calc of 2nd credit to PMs - good through 2019 - our
A6: MSA payment should go up then: | L6: Based on the most recent projection of TSRs available ($6,314,245), the amount of principal to be paid on June 1 is $1,175,000.
L7: This number is just an estimate at this time. I am not aware of any fee increases for operating expenses (trustee, admin, rating agency).
A8: Per Email from Dana B - Credit in 2017 | F8: 87,643,971.00 | L8: I will use Slow pay of 1,080,000- and future years
B9: OTASC portion of MSA Payt | F9: 0.972%
B10: Otasc Portion of credit | F10: =+F8*F9 -> 851,899.40
L11: It does seem high when looking at the principal paid last year, but not when you factor in the interest
B12: Will use a bump of $700K to be conservative | L12: expense. The 2016 A-2B bonds had a long first interest payment date of 6/1/17 (rather than on 12/1/16 like
L13: the 2016 A-1 bonds), resulting in a decrease of interest expense in 2018 of $430K. If you add the $477K in
A14: 3) 2017 Prin Payt - NYCTT VI | F14: 325,000 | L14: additional TSRs for 2018, last year’s principal payment of $325K, and the $430K or reduced interest cost, you arrive in the neighborhood of the $1,175K of principal.
A15: 2018- Estimate will be similar as MSA will be similar to 2017 | F15: 350,000
A17: 4) Calc of Interest Expense - Payments - 2016 Debt - Minus Prmium and Deferred Inflow | H17: ONLY FOR GOVERNMENTAL
H18: 2016 A-1 | I18: 2016A-2
B19: Slow Pay Schedule | I19: Premium & | K19: Net
B20: 2016 A-1 | C20: 2016 A-1 | D20: 2016 A-2B | E20: 2016 A-2B | F20: Total | H20: Premium | I20: Def Inflow | K20: Interest
A21: 2018 Interest | B21: 733,218.75 | C21: 822,537.50 | D21: 315,125.00 | E21: 699,500.00 | F21: =SUM(B21:E21) -> 2,570,381.25
B22: 702,843.75 | C22: 822,537.50 | D22: 315,125.00 | E22: 699,500.00 | F22: =SUM(B22:E22) -> 2,540,006.25
F23: =SUM(F21:F22) -> 5,110,387.50 | H23: (266,049.00) | I23: (758,670.27) | K23: =+F23+H23+I23 -> 4,085,668.23
A24: 2019 Interest | B24: 702,843.75 | C24: 822,537.50 | D24: 315,125.00 | E24: 699,500.00 | F24: =SUM(B24:E24) -> 2,540,006.25
B25: 675,843.75 | C25: 822,537.50 | D25: 315,125.00 | E25: 699,500.00 | F25: =SUM(B25:E25) -> 2,513,006.25
F26: =SUM(F24:F25) -> 5,053,012.50 | H26: (266,049.00) | I26: (758,670.27) | K26: =+F26+H26+I26 -> 4,028,293.23
A27: 2020 Interest | B27: 675,843.75 | C27: 822,537.50 | D27: 315,125.00 | E27: 699,500.00 | F27: =SUM(B27:E27) -> 2,513,006.25
B28: 640,828.13 | C28: 822,537.50 | D28: 315,125.00 | E28: 699,500.00 | F28: =SUM(B28:E28) -> 2,477,990.63
F29: =SUM(F27:F28) -> 4,990,996.88 | H29: (266,049.00) | I29: (758,670.27) | K29: =+F29+H29+I29 -> 3,966,277.60
A30: 2021 Interest | B30: 640,828.13 | C30: 822,537.50 | D30: 315,125.00 | E30: 699,500.00 | F30: =SUM(B30:E30) -> 2,477,990.63
B31: 603,703.13 | C31: 822,537.50 | D31: 315,125.00 | E31: 699,500.00 | F31: =SUM(B31:E31) -> 2,440,865.63
F32: =SUM(F30:F31) -> 4,918,856.25 | H32: (266,049.00) | I32: (758,670.27) | K32: =+F32+H32+I32 -> 3,894,136.98
A33: 2022 Interest | B33: 603,703.13 | C33: 822,537.50 | D33: 315,125.00 | E33: 699,500.00 | F33: =SUM(B33:E33) -> 2,440,865.63
B34: 564,328.13 | C34: 822,537.50 | D34: 315,125.00 | E34: 699,500.00 | F34: =SUM(B34:E34) -> 2,401,490.63
F35: =SUM(F33:F34) -> 4,842,356.25 | H35: (266,049.00) | I35: (758,670.27)
A37: 5) Calc of Prin Payments | C37: Estimate
B38: Slow Pay | C38: MSA Payt
A39: 2017 | B39: 420,000 | C39: 420,000 | D39: 325,000 | E39: Due to lower MSA pays - 2017 to 2019
A40: 2018 | B40: 985,000 | C40: 350,000 | E40: will be lower - see above explanation
A41: 2019 | B41: 960,000 | C41: 400,000
A42: 2020 | B42: 1,245,000 | C42: 1,400,000
A43: 2021 | B43: 1,320,000 | C43: 1,450,000
A45: 6) Admin costs- allowable for $2k increase each year
A48: 7) Assume increase in expenses by 2020-2022
A49: Insurance - audit - legal fees etc
